fUSD/lending_fUSD_20250113
["ID","MTS","AMOUNT","RATE_DAILY","PERIOD"]
[348702561,1736727062533,-150.0,0.00012103,2]
[348702562,1736727062542,-150.0,0.00012105,2]
[348702563,1736727062551,-1500.0,0.00012106,2]
[348702564,1736727062561,-150.0,0.00012108,2]
[348702565,1736727062570,-150.0,0.00012108,2]
[348702566,1736727062579,-150.0,0.00012109,2]
[348702567,1736727062589,-150.0,0.0001211,2]
[348702568,1736727062598,-2067.0,0.00012112,2]
[348702569,1736727062607,-150.0,0.00012115,2]
[348702570,1736727062616,-150.0,0.00012117,2]
[348702571,1736727062625,-150.0,0.00012119,2]
[348702572,1736727062635,-150.0,0.00012125,2]
[348702573,1736727062644,-158.73271715,0.00012132,2]
[348702574,1736727062653,-150.0,0.00012145,2]
[348702575,1736727062662,-150.0,0.0001216,2]
[348702576,1736727062671,-150.0,0.0001216,2]
[348702577,1736727062680,-150.0,0.0001216,2]
[348702578,1736727062691,-150.0,0.00012169,2]
[348702579,1736727062701,-150.0,0.0001217,2]
[348702580,1736727062711,-150.0,0.00012172,2]
[348702581,1736727062721,-150.0,0.00012175,2]
[348702582,1736727062731,-150.0,0.00012177,2]
[348702583,1736727062740,-150.0,0.00012178,2]
[348702584,1736727062750,-150.0,0.00012179,2]
[348702585,1736727062759,-150.0,0.0001218,2]
[348702586,1736727062770,-500.0,0.00012183,2]
[348702587,1736727062781,-927.13,0.00012183,2]
[348702588,1736727062790,-2502.78,0.00012183,2]
[348702589,1736727062799,-500.0,0.00012183,2]
[348702590,1736727062808,-522.99,0.00012183,2]
[348702591,1736727062818,-566.89,0.00012183,2]
[348702592,1736727062828,-893.8,0.00012183,2]
[348702593,1736727062837,-1970.36,0.00012183,2]
[348702594,1736727062847,-539.57,0.00012183,2]
[348702595,1736727062856,-1331.9,0.00012183,2]
[348702596,1736727062866,-964.02,0.00012183,2]
[348702597,1736727062876,-880.61,0.00012183,2]
[348702598,1736727062885,-500.0,0.00012183,2]
[348702599,1736727062895,-562.92,0.00012183,2]
[348702600,1736727062904,-1494.44,0.00012183,2]
[348702601,1736727062913,-628.89,0.00012183,2]
[348702602,1736727062923,-612.88,0.00012183,2]
[348702603,1736727062932,-820.76,0.00012183,2]
[348702604,1736727062941,-500.0,0.00012183,2]
[348702605,1736727062951,-1027.38,0.00012183,2]
[348702606,1736727062960,-598.5,0.00012183,2]
[348702607,1736727062970,-500.0,0.00012183,2]
[348702608,1736727062979,-500.0,0.00012183,2]
[348702609,1736727062989,-538.66,0.00012183,2]
[348702610,1736727062998,-534.57,0.00012183,2]
[348702611,1736727063008,-628.2,0.00012183,2]
[348702612,1736727063017,-500.0,0.00012183,2]
[348702613,1736727063027,-1147.37,0.00012183,2]
[348702614,1736727063036,-524.03,0.00012183,2]
[348702615,1736727063046,-500.0,0.00012184,2]
[348702616,1736727063056,-500.0,0.00012184,2]
[348702617,1736727063065,-504.02,0.00012184,2]
[348702618,1736727063075,-500.0,0.00012184,2]
[348702619,1736727063084,-500.0,0.00012184,2]
[348702620,1736727063094,-500.0,0.00012184,2]
[348702621,1736727063104,-500.0,0.00012184,2]
[348702622,1736727063113,-500.0,0.00012184,2]
[348702623,1736727063124,-500.0,0.00012184,2]
[348702624,1736727063134,-150.0,0.00012184,2]
[348702625,1736727063144,-500.0,0.00012184,2]
[348702626,1736727063153,-614.02565915,0.00012184,2]
[348702627,1736727063163,-500.0,0.00012184,2]
[348702628,1736727063172,-500.0,0.00012184,2]
[348702629,1736727063182,-500.0,0.00012184,2]
[348702630,1736727063191,-500.0,0.00012184,2]
[348702631,1736727063201,-500.0,0.00012184,2]
[348702632,1736727063210,-503.16,0.00012184,2]
[348702633,1736727063220,-500.0,0.00012184,2]
[348702634,1736727063229,-500.0,0.00012184,2]
[348702635,1736727063238,-500.0,0.00012184,2]
[348702636,1736727063248,-500.0,0.00012184,2]
[348702637,1736727063257,-510.77,0.00012184,2]
[348702638,1736727063266,-500.0,0.00012184,2]
[348702639,1736727063277,-500.0,0.00012184,2]
[348702640,1736727063287,-500.0,0.00012184,2]
[348702641,1736727063296,-500.0,0.00012184,2]
[348702642,1736727063306,-500.0,0.00012184,2]
[348702643,1736727063315,-598.54,0.00012184,2]
[348702644,1736727063325,-500.0,0.00012184,2]
[348702645,1736727063335,-500.0,0.00012184,2]
[348702646,1736727063344,-500.0,0.00012184,2]
[348702647,1736727063354,-500.0,0.00012184,2]
[348702648,1736727063365,-500.0,0.00012184,2]
[348702649,1736727063374,-500.0,0.00012184,2]
[348702650,1736727063384,-500.0,0.00012184,2]
[348702651,1736727063393,-500.0,0.00012184,2]
[348702652,1736727063403,-1895.08,0.00012184,2]
[348702653,1736727063412,-500.0,0.00012184,2]
[348702654,1736727063422,-500.0,0.00012184,2]
[348702655,1736727063431,-1390.54,0.00012184,2]
[348702656,1736727063441,-500.0,0.00012184,2]
[348702657,1736727063451,-500.0,0.00012184,2]
[348702658,1736727063460,-500.0,0.00012184,2]
[348702659,1736727063470,-1640.42,0.00012184,2]
[348702660,1736727063480,-500.0,0.00012184,2]
[348702661,1736727063489,-540.12,0.00012184,2]
[348702662,1736727063499,-500.0,0.00012184,2]
[348702663,1736727063508,-500.0,0.00012184,2]
[348702664,1736727063518,-500.0,0.00012184,2]
[348702665,1736727063529,-500.0,0.00012184,2]
[348702666,1736727063539,-569.09213755,0.00012184,2]
[348702667,1736727063549,-500.0,0.00012184,2]
[348702668,1736727063558,-541.43,0.00012184,2]
[348702669,1736727063568,-500.0,0.00012184,2]
[348702670,1736727063578,-500.0,0.00012184,2]
[348702671,1736727063588,-500.0,0.00012184,2]
[348702672,1736727063597,-500.0,0.00012184,2]
[348702673,1736727063607,-155.27,0.00012184,2]
[348702674,1736727063617,-500.0,0.00012184,2]
[348702675,1736727063627,-150.0,0.00012185,2]
[348702676,1736727063636,-150.0,0.00012186,2]
[348702677,1736727063646,-150.0,0.00012186,2]
[348702678,1736727063656,-580.08,0.00012187,2]
[348702679,1736727063666,-500.0,0.00012187,2]
[348702680,1736727063676,-1568.76,0.00012187,2]
[348702681,1736727063686,-500.0,0.00012187,2]
[348702682,1736727063700,-500.0,0.00012187,2]
[348702683,1736727063710,-2014.15,0.00012187,2]
[348702684,1736727063720,-638.61,0.00012187,2]
[348702685,1736727063731,-500.0,0.00012187,2]
[348702686,1736727063741,-717.21,0.00012187,2]
[348702687,1736727063751,-801.38,0.00012187,2]
[348702688,1736727063761,-758.49,0.00012187,2]
[348702689,1736727063772,-680.21,0.00012187,2]
[348702690,1736727063782,-500.0,0.00012187,2]
[348702691,1736727063792,-500.0,0.00012187,2]
[348702692,1736727063802,-500.0,0.00012187,2]
[348702693,1736727063812,-1390.21,0.00012187,2]
[348702694,1736727063822,-500.0,0.00012187,2]
[348702695,1736727063831,-500.0,0.00012187,2]
[348702696,1736727063841,-500.0,0.00012187,2]
[348702697,1736727063851,-851.85,0.00012187,2]
[348702698,1736727063861,-503.63,0.00012187,2]
[348702699,1736727063871,-500.0,0.00012187,2]
[348702700,1736727063881,-2088.29,0.00012187,2]
[348702701,1736727063891,-2207.3,0.00012187,2]
[348702702,1736727063901,-150.0,0.00012187,2]
[348702703,1736727063910,-500.0,0.00012187,2]
[348702704,1736727063920,-548.52,0.00012187,2]
[348702705,1736727063930,-902.21,0.00012187,2]
[348702706,1736727063940,-300.0,0.00012187,2]
[348702707,1736727063950,-500.0,0.00012187,2]
[348702708,1736727063960,-500.0,0.00012187,2]
[348702709,1736727063970,-2078.81,0.00012187,2]
[348702710,1736727063980,-514.83,0.00012187,2]
[348702711,1736727063990,-500.0,0.00012187,2]
[348702712,1736727064001,-500.0,0.00012187,2]
[348702713,1736727064011,-500.0,0.00012187,2]
[348702714,1736727064021,-639.13647976,0.00012187,2]
[348702715,1736727064031,-607.65,0.00012187,2]
[348702716,1736727064041,-500.0,0.00012187,2]
[348702717,1736727064051,-500.0,0.00012187,2]
[348702718,1736727064061,-586.8,0.00012187,2]
[348702719,1736727064072,-500.0,0.00012187,2]
[348702720,1736727064082,-973.35,0.00012187,2]
[348702721,1736727064092,-500.0,0.00012187,2]
[348702722,1736727064101,-767.01,0.00012187,2]
[348702723,1736727064111,-562.52,0.00012187,2]
[348702724,1736727064121,-898.1,0.00012187,2]
[348702725,1736727064130,-1138.74,0.00012187,2]
[348702726,1736727064140,-500.0,0.00012187,2]
[348702727,1736727064149,-418.210191,0.00012188,2]
[348702728,1736727064159,-342.452523,0.00012188,2]
[348702729,1736727064169,-500.0,0.00012188,2]
[348702730,1736727064179,-500.0,0.00012188,2]
[348702731,1736727064189,-500.0,0.00012188,2]
[348702732,1736727064198,-150.0,0.00012188,2]
[348702733,1736727064208,-2051.84,0.00012188,2]
[348702734,1736727064423,-884.25,0.00012188,2]
[348702735,1736727064432,-1346.24,0.00012188,2]
[348702736,1736727064441,-530.04,0.00012188,2]
[348702737,1736727064451,-858.76,0.00012188,2]
[348702738,1736727064461,-500.0,0.00012188,2]
[348702739,1736727064471,-1142.46,0.00012188,2]
[348702740,1736727064481,-500.0,0.00012188,2]
[348702741,1736727064490,-1264.75,0.00012189,2]
[348702742,1736727064500,-526.79,0.00012189,2]
[348702743,1736727064509,-760.11,0.00012189,2]
[348702744,1736727064518,-823.3,0.00012189,2]
[348702745,1736727064528,-500.0,0.00012189,2]
[348702746,1736727064538,-668.36,0.00012189,2]
[348702747,1736727064547,-1202.09,0.00012189,2]
[348702748,1736727064557,-1043.38,0.00012189,2]
[348702749,1736727064566,-774.84,0.00012191,2]
[348702750,1736727064576,-687.44,0.00012191,2]
[348702751,1736727064587,-150.0,0.00012191,2]
[348702752,1736727064596,-500.0,0.00012191,2]
[348702753,1736727064606,-817.27,0.00012191,2]
[348702754,1736727064616,-907.21,0.00012191,2]
[348702755,1736727064625,-567.16,0.00012191,2]
[348702756,1736727064634,-960.51,0.00012191,2]
[348702757,1736727064644,-1054.29,0.00012191,2]
[348702758,1736727064653,-1009.53,0.00012191,2]
[348702759,1736727064662,-1489.54,0.00012191,2]
[348702760,1736727064671,-3214.17,0.00012191,2]
[348702761,1736727064681,-694.36,0.00012191,2]
[348702762,1736727064693,-500.0,0.00012191,2]
[348702763,1736727064703,-505.41,0.00012191,2]
[348702764,1736727064712,-150.0,0.00012194,2]
[348702765,1736727064721,-150.0,0.00012196,2]
[348702766,1736727064731,-150.0,0.00012199,2]
[348702767,1736727064740,-50025.63610488,0.000122,3]
[348702768,1736727064750,-5256.78690001,0.000122,2]
[348702769,1736727064759,-2000.0,0.000122,2]
[348702770,1736727064771,-150.0,0.00012201,2]
[348702771,1736727064780,-1500.0,0.00012203,2]
[348702772,1736727064789,-150.0,0.00012211,2]
[348702773,1736727064799,-150.0,0.00012212,2]
[348702774,1736727064809,-150.0,0.00012214,2]
[348702775,1736727064818,-150.0,0.00012214,2]
[348702776,1736727064827,-1500.0,0.00012214,2]
[348702777,1736727064837,-150.0,0.00012215,2]
[348702778,1736727064846,-150.0,0.00012216,2]
[348702779,1736727064856,-150.0,0.00012218,2]
[348702780,1736727064866,-150.0,0.0001222,2]
[348702781,1736727064875,-150.0,0.00012222,2]
[348702782,1736727064884,-150.0,0.00012223,2]
[348702783,1736727064893,-180119.72387394,0.00012228,2]
[348702784,1736727064903,-150.0,0.00012228,2]
[348702785,1736727064912,-150.0,0.0001223,2]
[348702786,1736727064921,-150.0,0.0001223,2]
[348702787,1736727064930,-500.0,0.0001223,2]
[348702788,1736727064940,-150.0,0.00012231,2]
[348702789,1736727064949,-150.0,0.00012231,2]
[348702790,1736727064958,-150.0,0.00012231,2]
[348702791,1736727064967,-150.0,0.00012234,2]
[348702792,1736727064976,-150.0,0.00012237,2]
[348702793,1736727064985,-2067.0,0.00012237,2]
[348702794,1736727064994,-150.0,0.00012241,2]
[348702795,1736727065003,-150.0,0.00012242,2]
[348702796,1736727065012,-150.0,0.00012243,2]
[348702797,1736727065022,-1500.0,0.00012245,2]
[348702798,1736727065031,-150.0,0.00012246,2]
[348702799,1736727065040,-14135.97170446,0.00012254,3]
[348702800,1736727065049,-150.0,0.00012255,2]
[348702801,1736727065058,-1500.0,0.00012256,2]
[348702802,1736727065067,-150.0,0.00012257,2]
[348702803,1736727065077,-150.0,0.00012257,2]
[348702804,1736727065087,-150.0,0.00012257,2]
[348702805,1736727065097,-39515.83523346,0.00012263,2]
[348702806,1736727065107,-150.0,0.00012264,2]
[348702807,1736727065116,-189771.42716091,0.00012265,2]
[348702808,1736727065125,-150.0,0.00012266,2]
[348702809,1736727065134,-150.0,0.00012267,2]
[348702810,1736727065143,-150.0,0.00012268,2]
[348702811,1736727065153,-150.0,0.0001227,2]
[348702812,1736727065162,-150.0,0.00012271,2]
[348702813,1736727065171,-150.0,0.00012273,2]
[348702814,1736727065180,-20173.0,0.00012274,2]
[348702815,1736727065190,-20750.98355239,0.0001228,2]
[348702816,1736727065200,-153.507976,0.0001228,3]
[348702817,1736727065209,-169.519358,0.0001228,3]
[348702818,1736727065218,-150.0,0.00012281,2]
[348702819,1736727065227,-1500.0,0.00012283,2]
[348702820,1736727065236,-7106.18484369,0.0001229,2]
[348702821,1736727065245,-113408.94838583,0.00012296,2]
[348702822,1736727065254,-34767.74717173,0.00012296,2]
[348702823,1736727065495,-7210.74810465,0.00012296,2]
[348702824,1736727065506,-30331.38794063,0.00012296,2]
[348702825,1736727065515,-151.0,0.00012296,2]
[348702826,1736727065525,-2000.0,0.00012299,2]
[348702827,1736727065535,-2000.0,0.00012299,2]
[348702828,1736727065546,-2000.0,0.00012299,2]
[348702829,1736727065555,-2000.0,0.00012299,2]
[348702830,1736727065564,-2000.0,0.00012299,2]
[348702831,1736727065573,-2000.0,0.00012299,2]
[348702832,1736727065583,-2000.0,0.00012299,2]
[348702833,1736727065593,-2000.0,0.00012299,2]
[348702834,1736727065602,-2000.0,0.00012299,2]
[348702835,1736727065612,-11168.12694988,0.00012299,2]
[348702836,1736727065621,-981.5232,0.00012299,2]
[348702837,1736727065630,-16010.23437467,0.000123,2]
[348702838,1736727065642,-475.8703,0.000123,2]
[348702839,1736727065653,-3123.54358662,0.000123,2]
[348702840,1736727065669,-62180.81355393,0.000123,2]
[348702841,1736727065680,-3904.00173152,0.000123,2]
[348702842,1736727065694,-1890.65922223,0.000123,2]
[348702843,1736727065705,-3593.47834983,0.000123,2]
[348702844,1736727065716,-1746.3324078,0.000123,2]
[348702845,1736727065727,-4980.16031994,0.000123,2]
[348702846,1736727065738,-11148.5019612,0.000123,2]
[348702847,1736727065749,-3246.26497073,0.000123,2]
[348702848,1736727065760,-15381.33123423,0.000123,2]
[348702849,1736727065773,-8307.66994319,0.000123,2]
[348702850,1736727065785,-4689.74549147,0.000123,2]
[348702851,1736727065796,-2315.9462,0.000123,2]
[348702852,1736727065814,-1270.15857547,0.000123,2]
[348702853,1736727065824,-163874.45225493,0.000123,2]
[348702854,1736727065835,-917.24959536,0.000123,2]
[348702855,1736727065846,-1101.98242668,0.000123,2]
[348702856,1736727065857,-7539.26286596,0.000123,2]
[348702857,1736727066134,-200.0,9.2e-05,3]
[348702858,1736727066143,-500.0,9.991e-05,2]
[348702859,1736727066153,-1806.71483423,0.000123,2]
[348702860,1736727066166,-6352.39774911,0.000123,2]
[348702861,1736727066177,-29810.42719147,0.000123,2]
[348702862,1736727066271,-500.0,0.00010265,2]
[348702863,1736727066282,-426.61520994,0.000123,2]
[348702864,1736727066294,-12293.7488,0.000123,2]
[348702865,1736727066305,-3563.92828135,0.000123,2]
[348702866,1736727066315,-2465.5210002,0.000123,2]
[348702867,1736727066327,-5862.20890592,0.000123,2]
[348702868,1736727066338,-18587.40094578,0.000123,2]
[348702869,1736727066349,-1636.96534109,0.000123,2]
[348702870,1736727066360,-7017.51950224,0.000123,2]
[348702871,1736727066371,-42923.6904437,0.000123,2]
[348702872,1736727066382,-808.56973,0.000123,2]
[348702873,1736727066393,-758.88408424,0.000123,2]
[348702874,1736727066404,-1196.27588103,0.000123,2]
[348702875,1736727066415,-422.90000105,0.000123,2]
[348702876,1736727066426,-540.220996,0.000123,2]
[348702877,1736727066437,-433.74391181,0.000123,2]
[348702878,1736727066450,-6332.2849218,0.000123,2]
[348702879,1736727066507,-495.23709628,0.000123,2]
[348702880,1736727066518,-482.13703691,0.000123,2]
[348702881,1736727066529,-2079.02430681,0.000123,2]
[348702882,1736727066542,-1940.8612218,0.000123,2]
[348702883,1736727066553,-597812.50078462,0.000123,2]
[348702884,1736727066905,-304.99345599,9.3e-05,3]
[348702885,1736727066916,-195.00654401,9.3e-05,3]
[348702886,1736727066925,-208.79913315,9.992e-05,2]
[348702887,1736727066937,-291.20086685,9.992e-05,2]
[348702888,1736727066946,-500.0,0.00010539,2]
[348702889,1736727066955,-500.0,0.00010813,2]
[348702890,1736727066964,-496691.57162366,0.000123,2]
[348702891,1736727066982,-1956.7953615,0.000123,2]
[348702892,1736727067001,-800.0,9.4e-05,3]
[348702893,1736727067011,-302.73508341,0.000123,2]
[348702894,1736727067021,-734.2936026,0.000123,2]
[348702895,1736727067037,-49345.67920818,0.000123,2]
[348702896,1736727067048,-7044.46401014,0.000123,2]
[348702897,1736727067059,-433.53101979,0.000123,2]
[348702898,1736727067070,-35546.65313763,0.000123,2]
[348702899,1736727337236,176.09,7.427e-05,2]
[348702902,1736727738341,500.0,0.00023,120]
[348702903,1736727990769,150.0,0.00022996,120]
[348702904,1736728073872,500.0,0.00023,120]
[348702910,1736728231624,-281.43,9.142e-05,2]
[348702911,1736728231634,-250.0,9.208e-05,2]
[348702912,1736728231644,-250.0,9.211e-05,2]
[348702913,1736728231654,-300.0,9.236e-05,2]
[348702914,1736728231664,-4407.18886519,9.237e-05,2]
[348702915,1736728231684,-497.65536239,9.237e-05,2]
[348702916,1736728231696,-2183.09359182,9.237e-05,2]
[348702917,1736728232284,-9930.54989418,9.237e-05,2]
[348702918,1736728232309,-6881.51228642,9.237e-05,2]
[348702919,1736728232318,-1000.0,9.243e-05,2]
[348702920,1736728232328,-943.6316685,9.328e-05,2]
[348702921,1736728232337,-250.0,9.328e-05,2]
[348702922,1736728232346,-264.67,9.355e-05,2]
[348702923,1736728232355,-2685.0,9.606e-05,2]
[348702924,1736728232364,-143.48893037,9.732e-05,2]
[348702925,1736728232375,-56.51106963,9.732e-05,2]
[348702926,1736728232384,-291.64920048,9.937e-05,2]
[348702927,1736728232394,-159.85598069,9.973e-05,2]
[348702928,1736728232403,-500.0,9.973e-05,2]
[348702929,1736728232412,-64.69367288,9.973e-05,2]
[348702930,1736728232428,-435.30632712,9.973e-05,2]
[348702931,1736728232437,-198.18305483,9.973e-05,2]
[348702932,1736728232446,-157.059362,9.991e-05,2]
[348702933,1736728232454,-521.4,9.991e-05,2]
[348702934,1736728232463,-274.16204659,9.991e-05,2]
[348702935,1736728232482,-225.83795341,9.991e-05,2]
[348702936,1736728232491,-74.16204659,9.991e-05,2]
[348702939,1736728232517,-76.89795341,9.991e-05,2]
[348702941,1736728232526,-500.0,9.991e-05,2]
[348702943,1736728232535,-174.54,9.991e-05,2]
[348702945,1736728232544,-500.0,9.991e-05,2]
[348702947,1736728232553,-500.0,9.991e-05,2]
[348702948,1736728232562,-500.0,9.991e-05,2]
[348702949,1736728232571,-500.0,9.991e-05,2]
[348702950,1736728232580,-500.0,9.991e-05,2]
[348702951,1736728232588,-500.0,9.991e-05,2]
[348702952,1736728232597,-500.0,9.991e-05,2]
[348702953,1736728232606,-500.0,9.991e-05,2]
[348702954,1736728232615,-500.0,9.991e-05,2]
[348702955,1736728232624,-500.0,9.991e-05,2]
[348702956,1736728232632,-500.0,9.991e-05,2]
[348702957,1736728232641,-500.0,9.991e-05,2]
[348702958,1736728232650,-458.77423154,9.991e-05,2]
[348702967,1736728237464,-41.22576846,9.991e-05,2]
[348702968,1736728237474,-500.0,9.991e-05,2]
[348702969,1736728237484,-500.0,9.991e-05,2]
[348702970,1736728237493,-31.67423154,9.991e-05,2]
[348702971,1736728237522,-468.32576846,9.991e-05,2]
[348702972,1736728237532,-639.72,9.991e-05,2]
[348702973,1736728237541,-500.0,9.991e-05,2]
[348702974,1736728237551,-612.58,9.991e-05,2]
[348702975,1736728237560,-84.77729695,9.991e-05,2]
[348702976,1736728237579,-1291.28270305,9.991e-05,2]
[348702977,1736728237588,-749.52,9.991e-05,2]
[348702978,1736728237597,-500.0,9.991e-05,2]
[348702979,1736728237606,-500.0,9.991e-05,2]
[348702980,1736728237615,-1358.28,9.991e-05,2]
[348702981,1736728237625,-1301.69,9.991e-05,2]
[348702982,1736728237635,-649.88,9.991e-05,2]
[348702983,1736728237644,-1956.13,9.991e-05,2]
[348702984,1736728237654,-542.24,9.991e-05,2]
[348702985,1736728237663,-758.85,9.991e-05,2]
[348702986,1736728237673,-917.51,9.991e-05,2]
[348702987,1736728237682,-917.51,9.991e-05,2]
[348702988,1736728237691,-594.56105702,9.991e-05,2]
[348702989,1736728237702,-1.45894298,9.991e-05,2]
[348702990,1736728237711,-500.0,9.991e-05,2]
[348702991,1736728237720,-500.0,9.992e-05,2]
[348702992,1736728237730,-500.0,9.992e-05,2]
[348702993,1736728237740,-500.0,9.992e-05,2]
[348702994,1736728237750,-500.0,9.992e-05,2]
[348702995,1736728237759,-501.03672191,9.992e-05,2]
[348702996,1736728237770,-500.0,9.992e-05,2]
[348702997,1736728237779,-500.0,9.992e-05,2]
[348702998,1736728237789,-500.0,9.992e-05,2]
[348702999,1736728237798,-500.0,9.992e-05,2]
[348703000,1736728237807,-500.0,9.992e-05,2]
[348703001,1736728237816,-500.0,9.992e-05,2]
[348703002,1736728237826,-500.81129647,9.992e-05,2]
[348703003,1736728237835,-500.53493488,9.992e-05,2]
[348703004,1736728237844,-500.0,9.992e-05,2]
[348703005,1736728237854,-500.46047113,9.992e-05,2]
[348703006,1736728237864,-300.0,9.992e-05,2]
[348703007,1736728237873,-501.58616187,9.992e-05,2]
[348703008,1736728237884,-500.0,9.992e-05,2]
[348703009,1736728237894,-502.04273035,9.992e-05,2]
[348703010,1736728237903,-504.0403135,9.992e-05,2]
[348703011,1736728237913,-500.0,9.992e-05,2]
[348703013,1736728237923,-500.0,9.992e-05,2]
[348703015,1736728237932,-500.0,9.992e-05,2]
[348703017,1736728237941,-502.69058578,9.992e-05,2]
[348703019,1736728237950,-500.0,9.992e-05,2]
[348703021,1736728237959,-500.29862436,9.992e-05,2]
[348703022,1736728237968,-500.0,9.992e-05,2]
[348703024,1736728237977,-617.26236842,9.992e-05,2]
[348703026,1736728237986,-500.0,9.992e-05,2]
[348703028,1736728237995,-500.27013525,9.992e-05,2]
[348703030,1736728238004,-500.34959369,9.992e-05,2]
[348703032,1736728238014,-222.56,9.992e-05,2]
[348703034,1736728238028,-500.0,9.992e-05,2]
[348703036,1736728238038,-500.0,9.994e-05,2]
[348703038,1736728238047,-1956.13,9.994e-05,2]
[348703040,1736728238056,-500.0,9.995e-05,2]
[348703042,1736728238065,-536.73,9.995e-05,2]
[348703044,1736728238075,-500.0,9.995e-05,2]
[348703046,1736728238084,-500.0,9.995e-05,2]
[348703048,1736728238093,-785.24,9.995e-05,2]
[348703051,1736728238102,-500.0,9.995e-05,2]
[348703054,1736728238115,-507.12,9.995e-05,2]
[348703056,1736728238124,-500.0,9.995e-05,2]
[348703058,1736728238133,-500.0,9.995e-05,2]
[348703060,1736728238143,-536.52,9.995e-05,2]
[348703062,1736728238153,-622.45,9.995e-05,2]
[348703064,1736728238162,-587.84,9.995e-05,2]
[348703066,1736728238171,-500.0,9.995e-05,2]
[348703068,1736728238180,-664.92,9.995e-05,2]
[348703069,1736728238189,-697.93,9.995e-05,2]
[348703071,1736728238198,-673.19,9.995e-05,2]
[348703073,1736728238207,-1009.56,9.995e-05,2]
[348703075,1736728238216,-2111.45,9.995e-05,2]
[348703077,1736728238225,-500.0,9.995e-05,2]
[348703079,1736728238234,-500.0,9.995e-05,2]
[348703081,1736728238243,-500.0,9.995e-05,2]
[348703083,1736728238253,-835.45,9.995e-05,2]
[348703085,1736728238262,-500.0,9.995e-05,2]
[348703087,1736728238274,-500.0,9.995e-05,2]
[348703089,1736728238283,-500.0,9.995e-05,2]
[348703091,1736728238292,-514.56,9.995e-05,2]
[348703092,1736728238302,-500.0,9.995e-05,2]
[348703094,1736728238311,-500.0,9.995e-05,2]
[348703096,1736728238320,-751.3,9.995e-05,2]
[348703097,1736728238329,-683.04,9.995e-05,2]
[348703098,1736728238338,-500.0,9.999e-05,2]
[348703099,1736728238347,-500.0,9.999e-05,2]
[348703100,1736728238356,-500.0,9.999e-05,2]
[348703101,1736728238365,-500.0,9.999e-05,2]
[348703102,1736728238374,-500.0,9.999e-05,2]
[348703103,1736728238384,-340.71,9.999e-05,2]
[348703104,1736728238393,-500.0,9.999e-05,2]
[348703105,1736728238402,-500.0,9.999e-05,2]
[348703106,1736728238411,-1133.81,9.999e-05,2]
[348703107,1736728238420,-906.19,9.999e-05,2]
[348703108,1736728238429,-500.0,9.999e-05,2]
[348703109,1736728238439,-642.94,9.999e-05,2]
[348703110,1736728238447,-1112.74139546,9.999e-05,3]
[348703111,1736728238457,-574.38,9.999e-05,2]
[348703112,1736728238466,-500.0,9.999e-05,2]
[348703113,1736728238475,-1005.68,9.999e-05,2]
[348703114,1736728238483,-500.0,9.999e-05,2]
[348703115,1736728238492,-500.0,9.999e-05,2]
[348703116,1736728238502,-500.0,9.999e-05,2]
[348703117,1736728238511,-500.0,9.999e-05,2]
[348703118,1736728238522,-500.0,9.999e-05,2]
[348703119,1736728238531,-684.62,9.999e-05,2]
[348703120,1736728238540,-500.0,9.999e-05,2]
[348703121,1736728238549,-500.0,9.999e-05,2]
[348703122,1736728238559,-500.0,9.999e-05,2]
[348703123,1736728238568,-500.0,9.999e-05,2]